[Event "*** Titled Tuesday 3|2 Blitz"]
[Site "Chess.com"]
[Date "2016.07.05"]
[Round "4"]
[White "Andrejkin"]
[Black "Grootneus"]
[Result "1/2-1/2"]
[WhiteElo "2156"]
[BlackElo "2059"]
[TimeControl "180+2"]
[EndTime "11:48:51 PDT"]
[Termination "Game drawn - insufficient material"]

1. e4 {[%clk 0:03:01.9]} 1... c5 {[%clk 0:03:01]} 2. Nf3 {[%clk 0:03:01.1]} 2...
e6 {[%clk 0:03:02.5]} 3. Nc3 {[%clk 0:03:00.9]} 3... a6 {[%clk 0:03:02.8]} 4.
Be2 {[%clk 0:02:55.2]} 4... Qc7 {[%clk 0:03:03]} 5. O-O {[%clk 0:02:53]} 5... b5
{[%clk 0:02:59]} 6. a3 {[%clk 0:02:42.4]} 6... Bb7 {[%clk 0:02:59.2]} 7. d4
{[%clk 0:02:43.1]} 7... cxd4 {[%clk 0:02:59.3]} 8. Nxd4 {[%clk 0:02:45]} 8...
Nc6 {[%clk 0:02:57.8]} 9. Be3 {[%clk 0:02:37.9]} 9... Nf6 {[%clk 0:02:54.5]} 10.
f4 {[%clk 0:02:32.1]} 10... Nxd4 {[%clk 0:02:30.2]} 11. Qxd4 {[%clk 0:02:30.1]}
11... Rc8 {[%clk 0:02:10.1]} 12. e5 {[%clk 0:02:24.4]} 12... Nd5 {[%clk
0:02:07.7]} 13. Nxd5 {[%clk 0:02:24.9]} 13... Bxd5 {[%clk 0:02:09.6]} 14. c3
{[%clk 0:02:20]} 14... Bc4 {[%clk 0:02:04.7]} 15. Bxc4 {[%clk 0:02:17.7]} 15...
Qxc4 {[%clk 0:02:06.6]} 16. Rad1 {[%clk 0:02:13.9]} 16... Qxd4 {[%clk
0:02:06.1]} 17. Bxd4 {[%clk 0:02:15.8]} 17... Be7 {[%clk 0:02:00.5]} 18. f5
{[%clk 0:02:16.8]} 18... exf5 {[%clk 0:01:57.3]} 19. Rxf5 {[%clk 0:02:18.7]}
19... O-O {[%clk 0:01:58.3]} 20. g4 {[%clk 0:02:14.9]} 20... a5 {[%clk
0:01:56.5]} 21. h3 {[%clk 0:02:10]} 21... b4 {[%clk 0:01:57.6]} 22. axb4 {[%clk
0:02:06.8]} 22... axb4 {[%clk 0:01:59.5]} 23. Rf3 {[%clk 0:02:05.3]} 23... bxc3
{[%clk 0:02:00.2]} 24. Rxc3 {[%clk 0:02:06.9]} 24... Rb8 {[%clk 0:01:57]} 25.
Rc7 {[%clk 0:02:06]} 25... Rfd8 {[%clk 0:01:52.3]} 26. Bc5 {[%clk 0:02:05.3]}
26... Bxc5+ {[%clk 0:01:48.2]} 27. Rxc5 {[%clk 0:02:07.2]} 27... Rxb2 {[%clk
0:01:45.1]} 28. Rxd7 {[%clk 0:02:07.1]} 28... Rf8 {[%clk 0:01:46.4]} 29. Rcc7
{[%clk 0:02:03.2]} 29... Re2 {[%clk 0:01:46.8]} 30. Re7 {[%clk 0:02:01.9]} 30...
g5 {[%clk 0:01:43.3]} 31. Rcd7 {[%clk 0:02:00.2]} 31... h6 {[%clk 0:01:34.7]}
32. Kf1 {[%clk 0:01:56.8]} 32... Re4 {[%clk 0:01:32.4]} 33. Rd6 {[%clk
0:01:50.9]} 33... Kg7 {[%clk 0:01:30.4]} 34. e6 {[%clk 0:01:49.6]} 34... Kf6
{[%clk 0:00:36.8]} 35. Rxf7+ {[%clk 0:01:43.3]} 35... Rxf7 {[%clk 0:00:37.9]}
36. exf7+ {[%clk 0:01:45.2]} 36... Kxf7 {[%clk 0:00:39.8]} 37. Rxh6 {[%clk
0:01:46.7]} 37... Re3 {[%clk 0:00:41.5]} 38. Kg2 {[%clk 0:01:43.2]} 38... Kg7
{[%clk 0:00:40.8]} 39. Ra6 {[%clk 0:01:41.4]} 39... Rb3 {[%clk 0:00:41.3]} 40.
Ra2 {[%clk 0:01:35.8]} 40... Rc3 {[%clk 0:00:42.3]} 41. Rf2 {[%clk 0:01:34.6]}
41... Kg6 {[%clk 0:00:43.1]} 42. Rf3 {[%clk 0:01:33.6]} 42... Rc2+ {[%clk
0:00:44.2]} 43. Kg3 {[%clk 0:01:32.5]} 43... Rb2 {[%clk 0:00:45.2]} 44. h4
{[%clk 0:01:30.6]} 44... gxh4+ {[%clk 0:00:45.9]} 45. Kxh4 {[%clk 0:01:32.5]}
45... Rh2+ {[%clk 0:00:46.5]} 46. Kg3 {[%clk 0:01:32.4]} 46... Rb2 {[%clk
0:00:47.5]} 47. Rd3 {[%clk 0:01:28.1]} 47... Rb5 {[%clk 0:00:43]} 48. Kh4 {[%clk
0:01:26.9]} 48... Ra5 {[%clk 0:00:43.6]} 49. Rd6+ {[%clk 0:01:27.7]} 49... Kg7
{[%clk 0:00:44.8]} 50. g5 {[%clk 0:01:26.8]} 50... Ra1 {[%clk 0:00:44.5]} 51.
Kh5 {[%clk 0:01:25.1]} 51... Rh1+ {[%clk 0:00:44.8]} 52. Kg4 {[%clk 0:01:25.8]}
52... Rg1+ {[%clk 0:00:45.8]} 53. Kf5 {[%clk 0:01:21.6]} 53... Rf1+ {[%clk
0:00:46.8]} 54. Ke4 {[%clk 0:01:21.3]} 54... Rg1 {[%clk 0:00:46.1]} 55. Kf4
{[%clk 0:01:18.7]} 55... Rf1+ {[%clk 0:00:46.5]} 56. Ke3 {[%clk 0:01:19.6]}
56... Rg1 {[%clk 0:00:47.1]} 57. Rd5 {[%clk 0:01:17.7]} 57... Kg6 {[%clk
0:00:47.8]} 58. Kf4 {[%clk 0:01:16.6]} 58... Rf1+ {[%clk 0:00:47.8]} 59. Kg4
{[%clk 0:01:13.6]} 59... Rg1+ {[%clk 0:00:48.5]} 60. Kh4 {[%clk 0:01:15]} 60...
Rh1+ {[%clk 0:00:48.9]} 61. Kg3 {[%clk 0:01:15.1]} 61... Rg1+ {[%clk 0:00:50]}
62. Kh2 {[%clk 0:01:16.1]} 62... Rxg5 {[%clk 0:00:51]} 63. Rxg5+ {[%clk
0:01:17.5]} 63... Kxg5 {[%clk 0:00:52.5]} 1/2-1/2

[Event "*** Titled Tuesday 3|2 Blitz"]
[Site "Chess.com"]
[Date "2016.07.05"]
[Round "4"]
[White "Misha_Bilous"]
[Black "Hieronymus00"]
[Result "0-1"]
[WhiteElo "2245"]
[BlackElo "2166"]
[TimeControl "180+2"]
[EndTime "11:48:56 PDT"]
[Termination "Hieronymus00 won by checkmate"]

1. d4 {[%clk 0:03:01.9]} 1... Nf6 {[%clk 0:02:58.7]} 2. c4 {[%clk 0:03:02]} 2...
g6 {[%clk 0:02:59.8]} 3. Nc3 {[%clk 0:03:02.9]} 3... Bg7 {[%clk 0:03:01.4]} 4.
e4 {[%clk 0:03:03.8]} 4... d6 {[%clk 0:03:02.4]} 5. f3 {[%clk 0:03:05]} 5... O-O
{[%clk 0:02:59.8]} 6. Be3 {[%clk 0:03:06.5]} 6... a6 {[%clk 0:03:00.7]} 7. Qd2
{[%clk 0:03:06.9]} 7... Nbd7 {[%clk 0:03:01.3]} 8. Nge2 {[%clk 0:02:32.3]} 8...
c5 {[%clk 0:03:01.2]} 9. d5 {[%clk 0:02:33.4]} 9... Qa5 {[%clk 0:02:44.8]} 10.
Nc1 {[%clk 0:02:28.6]} 10... Rb8 {[%clk 0:02:32.3]} 11. a4 {[%clk 0:02:01.5]}
11... Ne5 {[%clk 0:02:23.5]} 12. Ra3 {[%clk 0:01:44]} 12... h5 {[%clk 0:01:57]}
13. h3 {[%clk 0:01:23.7]} 13... h4 {[%clk 0:01:30.9]} 14. f4 {[%clk 0:01:24.6]}
14... Ned7 {[%clk 0:01:30.9]} 15. Be2 {[%clk 0:01:22.7]} 15... Qc7 {[%clk
0:01:23.7]} 16. O-O {[%clk 0:01:20.6]} 16... Nh7 {[%clk 0:01:09.8]} 17. Qe1
{[%clk 0:01:06.2]} 17... Bf6 {[%clk 0:01:03]} 18. Bf2 {[%clk 0:01:07.1]} 18...
b5 {[%clk 0:00:55.4]} 19. axb5 {[%clk 0:01:06.8]} 19... axb5 {[%clk 0:00:56.3]}
20. Nxb5 {[%clk 0:01:05.1]} 20... Rxb5 {[%clk 0:00:56]} 21. cxb5 {[%clk
0:01:04.9]} 21... Bxb2 {[%clk 0:00:56.6]} 22. Rb3 {[%clk 0:01:05.2]} 22... Bg7
{[%clk 0:00:55.5]} 23. Bxh4 {[%clk 0:01:03.6]} 23... c4 {[%clk 0:00:49.6]} 24.
Rb4 {[%clk 0:01:01.5]} 24... Nb6 {[%clk 0:00:49.7]} 25. Bf2 {[%clk 0:00:56.8]}
25... e6 {[%clk 0:00:46.7]} 26. Na2 {[%clk 0:00:50.1]} 26... exd5 {[%clk
0:00:41.5]} 27. exd5 {[%clk 0:00:51.1]} 27... Re8 {[%clk 0:00:33.2]} 28. Qd1
{[%clk 0:00:49]} 28... Nf6 {[%clk 0:00:28.4]} 29. Nc3 {[%clk 0:00:44]} 29... Bf5
{[%clk 0:00:24.3]} 30. Qd4 {[%clk 0:00:32.7]} 30... Rb8 {[%clk 0:00:19]} 31. Qd2
{[%clk 0:00:22.7]} 31... Ne4 {[%clk 0:00:19.3]} 32. Nxe4 {[%clk 0:00:22.4]}
32... Bxe4 {[%clk 0:00:21.2]} 33. Rc1 {[%clk 0:00:19.6]} 33... Bxd5 {[%clk
0:00:21.7]} 34. Kh1 {[%clk 0:00:14.9]} 34... Re8 {[%clk 0:00:21.6]} 35. Bxb6
{[%clk 0:00:14.3]} 35... Qxb6 {[%clk 0:00:21.6]} 36. Qxd5 {[%clk 0:00:15.2]}
36... Rxe2 {[%clk 0:00:22]} 37. Qf3 {[%clk 0:00:13]} 37... Rf2 {[%clk
0:00:20.2]} 38. Qd5 {[%clk 0:00:09]} 38... c3 {[%clk 0:00:19.8]} 39. Rc4 {[%clk
0:00:07.4]} 39... Rd2 {[%clk 0:00:20.2]} 40. Rc8+ {[%clk 0:00:08]} 40... Kh7
{[%clk 0:00:20.5]} 41. Qxf7 {[%clk 0:00:07.2]} 41... Qf2 {[%clk 0:00:20]} 42.
Rg1 {[%clk 0:00:06.6]} 42... c2 {[%clk 0:00:20.7]} 43. Rc7 {[%clk 0:00:07.5]}
43... Qd4 {[%clk 0:00:20.9]} 44. b6 {[%clk 0:00:05.1]} 44... Rd1 {[%clk
0:00:21.8]} 45. Rxc2 {[%clk 0:00:03.1]} 45... Qxg1# {[%clk 0:00:21.6]} 0-1

[Event "*** Titled Tuesday 3|2 Blitz"]
[Site "Chess.com"]
[Date "2016.07.05"]
[Round "4"]
[White "Boryboy"]
[Black "Mornar1951"]
[Result "0-1"]
[WhiteElo "2521"]
[BlackElo "2508"]
[TimeControl "180+2"]
[EndTime "11:48:57 PDT"]
[Termination "Mornar1951 won by resignation"]

1. d4 {[%clk 0:03:01.9]} 1... d5 {[%clk 0:03:01.2]} 2. Nf3 {[%clk 0:03:02.6]}
2... Nf6 {[%clk 0:02:59.9]} 3. c4 {[%clk 0:03:03.6]} 3... e6 {[%clk 0:03:01.2]}
4. g3 {[%clk 0:03:04.4]} 4... dxc4 {[%clk 0:03:00.9]} 5. Bg2 {[%clk 0:03:05.1]}
5... Nc6 {[%clk 0:03:02.5]} 6. Qa4 {[%clk 0:03:04.5]} 6... Bb4+ {[%clk
0:03:03.5]} 7. Bd2 {[%clk 0:02:49.4]} 7... Nd5 {[%clk 0:03:03.6]} 8. O-O {[%clk
0:02:47.8]} 8... Nb6 {[%clk 0:02:51.8]} 9. Qc2 {[%clk 0:02:46.3]} 9... Bxd2
{[%clk 0:02:50.1]} 10. Qxd2 {[%clk 0:02:46]} 10... O-O {[%clk 0:02:48.2]} 11.
Na3 {[%clk 0:02:44.4]} 11... e5 {[%clk 0:02:47.1]} 12. Rfd1 {[%clk 0:02:40.7]}
12... exd4 {[%clk 0:02:42.9]} 13. Nxd4 {[%clk 0:02:41]} 13... Nxd4 {[%clk
0:02:43.4]} 14. Qxd4 {[%clk 0:02:42.9]} 14... Qxd4 {[%clk 0:02:43.1]} 15. Rxd4
{[%clk 0:02:44.8]} 15... c6 {[%clk 0:02:44.4]} 16. Nxc4 {[%clk 0:02:41.4]} 16...
Nxc4 {[%clk 0:02:43.4]} 17. Rxc4 {[%clk 0:02:43.3]} 17... Be6 {[%clk 0:02:44.5]}
18. Rd4 {[%clk 0:02:41.3]} 18... Rfd8 {[%clk 0:02:41.7]} 19. Rad1 {[%clk
0:02:20.1]} 19... Rxd4 {[%clk 0:02:41.3]} 20. Rxd4 {[%clk 0:02:22]} 20... Bxa2
{[%clk 0:02:40.5]} 21. Rb4 {[%clk 0:02:19.5]} 21... b6 {[%clk 0:02:22.5]} 22.
Bxc6 {[%clk 0:02:19.9]} 22... Rc8 {[%clk 0:02:23.1]} 23. Bf3 {[%clk 0:02:15.7]}
23... Rc7 {[%clk 0:02:18.2]} 24. Rd4 {[%clk 0:02:14.2]} 24... Kf8 {[%clk
0:02:18.6]} 25. Rd2 {[%clk 0:02:12.3]} 25... Ke7 {[%clk 0:02:14.8]} 26. h4
{[%clk 0:02:13.3]} 26... Bb3 {[%clk 0:02:11.1]} 27. e3 {[%clk 0:02:11.9]} 27...
Rd7 {[%clk 0:02:11]} 28. Rxd7+ {[%clk 0:02:10.3]} 28... Kxd7 {[%clk 0:02:12.9]}
29. Kf1 {[%clk 0:02:12.2]} 29... Kd6 {[%clk 0:02:13]} 30. Ke2 {[%clk 0:02:12.4]}
30... Kc5 {[%clk 0:02:13.7]} 31. Kd2 {[%clk 0:02:12.6]} 31... Kb4 {[%clk
0:02:14.1]} 32. Be4 {[%clk 0:02:13.2]} 32... h6 {[%clk 0:02:14.5]} 33. g4 {[%clk
0:02:13]} 33... g5 {[%clk 0:02:11.4]} 34. hxg5 {[%clk 0:02:12.8]} 34... hxg5
{[%clk 0:02:13.3]} 35. f4 {[%clk 0:02:13]} 35... f6 {[%clk 0:02:13.6]} 36. fxg5
{[%clk 0:02:13.2]} 36... fxg5 {[%clk 0:02:15.5]} 37. Bf5 {[%clk 0:02:12.6]}
37... a5 {[%clk 0:02:11.5]} 38. Kd3 {[%clk 0:02:04.1]} 38... Kc5 {[%clk
0:02:10.7]} 39. Bc8 {[%clk 0:01:53.7]} 39... b5 {[%clk 0:02:08.2]} 40. Bd7
{[%clk 0:01:51.4]} 40... b4 {[%clk 0:02:06.8]} 41. Kd2 {[%clk 0:01:50.9]} 41...
Kd6 {[%clk 0:02:03.9]} 42. Bb5 {[%clk 0:01:45.8]} 42... Ke5 {[%clk 0:02:03.2]}
43. Be2 {[%clk 0:01:46.7]} 43... Ke4 {[%clk 0:02:01.5]} 44. Bd3+ {[%clk
0:01:42.8]} 44... Kf3 {[%clk 0:02:01.1]} 45. Be2+ {[%clk 0:01:44.5]} 45... Kg3
{[%clk 0:02:02.1]} 46. Kd3 {[%clk 0:01:44.6]} 46... a4 {[%clk 0:02:00]} 47. Kd4
{[%clk 0:01:44]} 47... a3 {[%clk 0:01:54.8]} 48. bxa3 {[%clk 0:01:45.1]} 48...
bxa3 {[%clk 0:01:56.6]} 49. Kc3 {[%clk 0:01:46.8]} 49... Be6 {[%clk 0:01:57.6]}
50. Bd3 {[%clk 0:01:41.8]} 50... Kxg4 {[%clk 0:01:56.2]} 51. Be2+ {[%clk
0:01:37.6]} 51... Kg3 {[%clk 0:01:56.9]} 52. Bh5 {[%clk 0:01:37.9]} 52... Kf2
{[%clk 0:01:57.6]} 53. e4 {[%clk 0:01:38.6]} 53... Ke3 {[%clk 0:01:58.7]} 54. e5
{[%clk 0:01:39.8]} 54... Kf4 {[%clk 0:01:58.7]} 55. Bd1 {[%clk 0:01:38]} 55...
Kxe5 {[%clk 0:01:59.8]} 56. Be2 {[%clk 0:01:37.9]} 56... Kf4 {[%clk 0:02:00.9]}
57. Bh5 {[%clk 0:01:34.3]} 57... Ke3 {[%clk 0:01:54.6]} 58. Kc2 {[%clk
0:01:35.1]} 58... Kd4 {[%clk 0:01:50.5]} 59. Kb1 {[%clk 0:01:36.2]} 59... Ke3
{[%clk 0:01:45.6]} 60. Ka1 {[%clk 0:01:37.4]} 60... Kf4 {[%clk 0:01:46.7]} 61.
Bd1 {[%clk 0:01:36.9]} 61... Bg4 {[%clk 0:01:46.7]} 62. Bb3 {[%clk 0:01:37.6]}
62... Bf5 {[%clk 0:01:42.1]} 63. Bd1 {[%clk 0:01:37.6]} 63... Be6 {[%clk
0:01:42.1]} 64. Bh5 {[%clk 0:01:37]} 64... Bd5 {[%clk 0:01:43.1]} 65. Be8 {[%clk
0:00:58.8]} 65... g4 {[%clk 0:01:42.7]} 66. Bd7 {[%clk 0:00:59.4]} 66... g3
{[%clk 0:01:43.5]} 67. Bh3 {[%clk 0:01:01.1]} 67... Ke3 {[%clk 0:01:40]} 68. Bf1
{[%clk 0:01:00]} 68... Kf2 {[%clk 0:01:39.2]} 69. Bh3 {[%clk 0:01:01.2]} 69...
Bc4 {[%clk 0:01:40.3]} 70. Bf5 {[%clk 0:00:48.1]} 70... g2 {[%clk 0:01:35.8]}
71. Bb1 {[%clk 0:00:49.2]} 71... a2 {[%clk 0:01:35.7]} 0-1

[Event "*** Titled Tuesday 3|2 Blitz"]
[Site "Chess.com"]
[Date "2016.07.05"]
[Round "4"]
[White "Semetey"]
[Black "YuriyKrykun"]
[Result "1-0"]
[WhiteElo "2447"]
[BlackElo "2300"]
[TimeControl "180+2"]
[EndTime "11:49:21 PDT"]
[Termination "Semetey won by resignation"]

1. d4 {[%clk 0:03:01.9]} 1... Nf6 {[%clk 0:03:00.4]} 2. Bf4 {[%clk 0:03:02.5]}
2... g6 {[%clk 0:03:01.3]} 3. Nc3 {[%clk 0:03:02.6]} 3... d5 {[%clk 0:02:59.5]}
4. Qd2 {[%clk 0:03:03.7]} 4... c6 {[%clk 0:02:57]} 5. h4 {[%clk 0:03:02.4]} 5...
Bf5 {[%clk 0:02:45.1]} 6. Nf3 {[%clk 0:02:47]} 6... Bg7 {[%clk 0:02:43.8]} 7.
Ne5 {[%clk 0:02:46.6]} 7... Nbd7 {[%clk 0:02:42.7]} 8. e3 {[%clk 0:02:46.8]}
8... Nxe5 {[%clk 0:02:39.4]} 9. Bxe5 {[%clk 0:02:43.1]} 9... Ne4 {[%clk
0:02:40.7]} 10. Nxe4 {[%clk 0:02:42.5]} 10... Bxe5 {[%clk 0:02:41.8]} 11. Nc5
{[%clk 0:02:34.2]} 11... Bg7 {[%clk 0:02:39.7]} 12. h5 {[%clk 0:02:33.9]} 12...
b6 {[%clk 0:02:38.6]} 13. h6 {[%clk 0:02:32.7]} 13... Bxh6 {[%clk 0:02:38.1]}
14. Rxh6 {[%clk 0:02:30.7]} 14... bxc5 {[%clk 0:02:39.2]} 15. dxc5 {[%clk
0:02:32.2]} 15... e5 {[%clk 0:02:36.6]} 16. Be2 {[%clk 0:02:28.8]} 16... Kf8
{[%clk 0:02:33.4]} 17. O-O-O {[%clk 0:02:29.2]} 17... Kg7 {[%clk 0:02:34.3]} 18.
Rdh1 {[%clk 0:02:30.2]} 18... Qf6 {[%clk 0:02:30.1]} 19. f3 {[%clk 0:01:50.5]}
19... Rab8 {[%clk 0:02:28.6]} 20. g4 {[%clk 0:01:41.9]} 20... e4 {[%clk
0:02:23]} 21. c3 {[%clk 0:01:38.7]} 21... exf3 {[%clk 0:02:23.7]} 22. Bxf3
{[%clk 0:01:39.4]} 22... Be4 {[%clk 0:02:23.9]} 23. Bxe4 {[%clk 0:01:40]} 23...
dxe4 {[%clk 0:02:25.8]} 24. Qh2 {[%clk 0:01:38.6]} 24... Rb5 {[%clk 0:01:56.9]}
25. Rxh7+ {[%clk 0:01:38.3]} 25... Rxh7 {[%clk 0:01:56]} 26. Qxh7+ {[%clk
0:01:37.2]} 26... Kf8 {[%clk 0:01:57.6]} 27. Qh6+ {[%clk 0:01:34.1]} 27... Ke7
{[%clk 0:01:54.2]} 28. Qh2 {[%clk 0:01:20.8]} 28... Rxc5 {[%clk 0:01:50.2]} 29.
Qc7+ {[%clk 0:01:21.4]} 29... Kf8 {[%clk 0:01:51.7]} 30. Qc8+ {[%clk 0:01:18.4]}
30... Ke7 {[%clk 0:01:50.1]} 31. Qb7+ {[%clk 0:01:14.9]} 31... Kf8 {[%clk
0:01:49.9]} 32. Qb8+ {[%clk 0:01:16]} 32... Ke7 {[%clk 0:01:49.3]} 33. Qxa7+
{[%clk 0:01:17.1]} 33... Kd6 {[%clk 0:01:50.8]} 34. Qb8+ {[%clk 0:01:14]} 34...
Ke6 {[%clk 0:01:48.9]} 35. Qc8+ {[%clk 0:01:06.2]} 35... Kd6 {[%clk 0:01:49.5]}
36. Qb8+ {[%clk 0:00:35.6]} 36... Ke6 {[%clk 0:01:37.6]} 37. Qb3+ {[%clk
0:00:35.3]} 37... Kd6 {[%clk 0:01:35.9]} 38. Qb4 {[%clk 0:00:36.3]} 38... Qe5
{[%clk 0:01:30.5]} 39. Rf1 {[%clk 0:00:30.8]} 39... Ke6 {[%clk 0:01:28.9]} 40.
Qb7 {[%clk 0:00:31.3]} 40... f5 {[%clk 0:01:24.6]} 41. gxf5+ {[%clk 0:00:31.6]}
41... gxf5 {[%clk 0:01:25.1]} 42. Qc8+ {[%clk 0:00:32.2]} 42... Kf6 {[%clk
0:01:26]} 43. Qf8+ {[%clk 0:00:30.5]} 43... Ke6 {[%clk 0:01:24.2]} 44. Qc8+
{[%clk 0:00:30.6]} 44... Kf6 {[%clk 0:01:25.1]} 45. Rg1 {[%clk 0:00:31.8]} 45...
Rxc3+ {[%clk 0:00:50.8]} 46. Kb1 {[%clk 0:00:32.9]} 46... Rxe3 {[%clk
0:00:48.1]} 47. Qf8+ {[%clk 0:00:21]} 47... Ke6 {[%clk 0:00:47.6]} 48. Rg6+
{[%clk 0:00:21.9]} 48... Kd5 {[%clk 0:00:47]} 49. Qd8+ {[%clk 0:00:22.7]} 49...
Kc4 {[%clk 0:00:48]} 50. Rxc6+ {[%clk 0:00:23]} 50... Qc5 {[%clk 0:00:47.2]} 51.
Rxc5+ {[%clk 0:00:22.6]} 51... Kxc5 {[%clk 0:00:48.8]} 52. Qc7+ {[%clk
0:00:23.4]} 52... Kd4 {[%clk 0:00:48.4]} 53. Qb6+ {[%clk 0:00:20.6]} 53... Kd3
{[%clk 0:00:48.3]} 54. Qb5+ {[%clk 0:00:21.9]} 54... Kd4 {[%clk 0:00:47.2]} 55.
Qxf5 {[%clk 0:00:22.7]} 55... Rf3 {[%clk 0:00:47.5]} 56. Qd7+ {[%clk 0:00:22.8]}
56... Ke3 {[%clk 0:00:45.1]} 57. a4 {[%clk 0:00:24.1]} 57... Rf1+ {[%clk
0:00:44.9]} 58. Kc2 {[%clk 0:00:25.3]} 58... Rf2+ {[%clk 0:00:45.9]} 59. Kc3
{[%clk 0:00:26.7]} 59... Rd2 {[%clk 0:00:46.8]} 60. Qxd2+ {[%clk 0:00:27.5]} 1-0

[Event "*** Titled Tuesday 3|2 Blitz"]
[Site "Chess.com"]
[Date "2016.07.05"]
[Round "4"]
[White "alturas_pacificas"]
[Black "Ksenia_Legenko"]
[Result "1-0"]
[WhiteElo "2167"]
[BlackElo "2058"]
[TimeControl "180+2"]
[EndTime "11:49:22 PDT"]
[Termination "alturas_pacificas won by resignation"]

1. d4 {[%clk 0:03:01.9]} 1... d5 {[%clk 0:03:00.5]} 2. Bf4 {[%clk 0:03:02.6]}
2... e6 {[%clk 0:02:58.7]} 3. e3 {[%clk 0:03:03.7]} 3... Bd6 {[%clk 0:02:58.4]}
4. Bg3 {[%clk 0:03:04.5]} 4... Nf6 {[%clk 0:02:57.9]} 5. Nd2 {[%clk 0:03:03.8]}
5... c5 {[%clk 0:02:58.4]} 6. c3 {[%clk 0:03:04.5]} 6... Nc6 {[%clk 0:02:58.3]}
7. Ngf3 {[%clk 0:03:06]} 7... Qc7 {[%clk 0:02:56.1]} 8. dxc5 {[%clk 0:03:06.3]}
8... Bxg3 {[%clk 0:02:56.5]} 9. hxg3 {[%clk 0:03:07.8]} 9... Ne7 {[%clk
0:02:46.9]} 10. b4 {[%clk 0:03:07.5]} 10... a5 {[%clk 0:02:39.3]} 11. Bb5+
{[%clk 0:02:53.7]} 11... Bd7 {[%clk 0:02:38]} 12. Bxd7+ {[%clk 0:02:55.2]} 12...
Nxd7 {[%clk 0:02:26.9]} 13. O-O {[%clk 0:02:57.1]} 13... O-O {[%clk 0:02:18.2]}
14. a3 {[%clk 0:02:50.2]} 14... b6 {[%clk 0:02:17.5]} 15. cxb6 {[%clk
0:02:49.2]} 15... Qxc3 {[%clk 0:02:15.6]} 16. Ne4 {[%clk 0:02:17.9]} 16... Qc6
{[%clk 0:01:36]} 17. Nc5 {[%clk 0:02:08.9]} 17... Nxc5 {[%clk 0:01:36.1]} 18.
Rc1 {[%clk 0:02:07]} 18... axb4 {[%clk 0:01:33.1]} 19. axb4 {[%clk 0:02:08]}
19... Qxb6 {[%clk 0:01:31.6]} 20. bxc5 {[%clk 0:02:09.1]} 20... Qb4 {[%clk
0:01:15.9]} 21. Qd2 {[%clk 0:01:56.3]} 21... Qa3 {[%clk 0:00:48.4]} 22. Nd4
{[%clk 0:01:45.9]} 22... Rfc8 {[%clk 0:00:45.3]} 23. Nb5 {[%clk 0:01:30.3]}
23... Qa5 {[%clk 0:00:34.3]} 24. Qxa5 {[%clk 0:01:28.6]} 24... Rxa5 {[%clk
0:00:34.4]} 25. Rb1 {[%clk 0:01:24]} 25... Rxc5 {[%clk 0:00:26.4]} 26. Nd6
{[%clk 0:01:22.6]} 26... Ra8 {[%clk 0:00:21.1]} 27. Rb7 {[%clk 0:01:21.3]} 27...
Kf8 {[%clk 0:00:07.1]} 28. Rfb1 {[%clk 0:01:18]} 28... Rd8 {[%clk 0:00:05.3]}
29. Rb8 {[%clk 0:00:37.2]} 29... Nc6 {[%clk 0:00:05.6]} 30. Rxd8+ {[%clk
0:00:36.7]} 30... Nxd8 {[%clk 0:00:06.4]} 31. Nb7 {[%clk 0:00:30.3]} 31... Nxb7
{[%clk 0:00:06.9]} 32. Rxb7 {[%clk 0:00:32.2]} 32... g6 {[%clk 0:00:08.2]} 33.
g4 {[%clk 0:00:31.8]} 33... Kg7 {[%clk 0:00:09.8]} 34. f3 {[%clk 0:00:32]} 34...
h6 {[%clk 0:00:09.9]} 35. Kf2 {[%clk 0:00:32.5]} 35... Rc3 {[%clk 0:00:11]} 36.
Rb1 {[%clk 0:00:32.8]} 36... Kf6 {[%clk 0:00:11.7]} 37. Re1 {[%clk 0:00:33.1]}
37... Kg7 {[%clk 0:00:12.9]} 38. Kg3 {[%clk 0:00:34.2]} 38... Rb3 {[%clk
0:00:13.5]} 39. Re2 {[%clk 0:00:35.5]} 39... Rb4 {[%clk 0:00:14.3]} 40. Re1
{[%clk 0:00:35.5]} 40... e5 {[%clk 0:00:15.1]} 41. Re2 {[%clk 0:00:36.5]} 41...
d4 {[%clk 0:00:16.3]} 42. exd4 {[%clk 0:00:37.4]} 42... exd4 {[%clk 0:00:17.4]}
43. Rd2 {[%clk 0:00:39]} 43... Kf6 {[%clk 0:00:18.6]} 44. Kf4 {[%clk 0:00:40.4]}
44... Ke6 {[%clk 0:00:18.2]} 45. Ke4 {[%clk 0:00:41.8]} 45... f5+ {[%clk
0:00:19.4]} 46. gxf5+ {[%clk 0:00:42.9]} 46... gxf5+ {[%clk 0:00:20.5]} 47. Kd3
{[%clk 0:00:44]} 47... Kd5 {[%clk 0:00:21.3]} 48. Ra2 {[%clk 0:00:39.3]} 48...
Rb2 {[%clk 0:00:19.1]} 49. Rxb2 {[%clk 0:00:39.6]} 1-0